bitfinex/quotes_BTCUSD_20250211
["timestamp","ask_amount","ask_price","bid_price","bid_amount"]
[1739297515658,0.00022408,96000.0,95994.0,0.18873778]
[1739297515934,0.00022408,96000.0,95995.0,0.03247878]
[1739297516178,0.00022408,96000.0,95997.0,0.156254]
[1739297516381,0.00022408,96000.0,95998.0,0.03247878]
[1739297516589,0.00022408,96000.0,95999.0,0.03247878]
[1739297517109,0.00022408,96000.0,95999.0,0.18872978]
[1739297519064,0.30621,96025.0,96013.0,0.03249086]
[1739297519294,0.30621,96025.0,96014.0,0.03249086]
[1739297519476,0.30621,96025.0,96015.0,0.03249086]
[1739297519691,0.156211,96024.0,96016.0,0.03249086]
[1739297519864,0.156211,96024.0,96017.0,0.03249086]
[1739297520262,0.15,96028.0,96018.0,0.03249086]
[1739297520463,0.15,96029.0,96019.0,0.03249086]
[1739297520812,0.16253598,96031.0,96020.0,0.03249086]
[1739297520975,0.007,96026.0,96021.0,0.03249086]
[1739297521189,0.007,96026.0,96013.0,0.208304]
[1739297521394,0.156203,96029.0,96014.0,0.03247395]
[1739297521554,0.156201,96031.0,96015.0,0.03247395]
[1739297521753,0.001,96029.0,96016.0,0.03247395]
[1739297522001,0.001,96029.0,96019.0,0.14525313]
[1739297522351,0.00022408,96025.0,96020.0,0.03247395]
[1739297522565,0.00022408,96025.0,96021.0,0.03247395]
[1739297522745,0.00022408,96025.0,96022.0,0.03247395]
[1739297522965,0.00022408,96025.0,96023.0,0.03247395]
[1739297523114,0.00022408,96025.0,96024.0,0.03247395]
[1739297524296,0.00022408,96025.0,96024.0,0.19168395]
[1739297524480,0.00122408,96025.0,96024.0,0.04247395]
[1739297524819,0.00022408,96025.0,96024.0,0.03547395]
[1739297525238,0.00122408,96025.0,96024.0,0.01]
[1739297525852,0.00122408,96025.0,96024.0,0.007]
[1739297526048,0.00122408,96025.0,96024.0,0.009]
[1739297526490,0.00022408,96025.0,96019.0,0.156218]
[1739297526690,0.00122408,96025.0,96024.0,0.01]
[1739297527311,0.00022408,96025.0,96024.0,0.003]
[1739297527853,0.00122408,96025.0,96024.0,0.15921]
[1739297528389,0.00022408,96025.0,96024.0,0.15921]
[1739297529336,0.02394948,96040.0,96024.0,0.10550365]
[1739297529659,0.02394948,96040.0,96032.0,0.156197]
[1739297529817,0.02394948,96040.0,96033.0,0.156194]
[1739297530019,0.02394948,96040.0,96035.0,0.156192]
[1739297530233,0.00022387,96043.0,96030.0,0.14525313]
[1739297530426,0.001,96040.0,96037.0,0.156188]
[1739297530679,0.001,96040.0,96035.0,0.156192]
[1739297530880,0.001,96040.0,96032.0,0.208263]
[1739297531082,0.002,96040.0,96032.0,0.208263]
[1739297531236,0.003,96040.0,96030.0,0.24775678]
[1739297531451,0.00125781,96040.0,96030.0,0.45602478]
[1739297531668,0.00125781,96040.0,96036.0,0.156189]
[1739297531865,0.00125781,96040.0,96034.0,0.156193]
[1739297532168,0.00125781,96040.0,96034.0,0.156194]
[1739297532372,0.00125781,96040.0,96035.0,0.156193]
[1739297532572,0.00125781,96040.0,96032.0,0.208263]
[1739297532993,0.00022387,96043.0,96034.0,0.416518]
[1739297533218,0.00022387,96043.0,96038.0,0.156188]
[1739297533420,0.003,96040.0,96035.0,0.31075865]
[1739297533629,0.003,96040.0,96039.0,0.156186]
[1739297533853,0.00022387,96043.0,96042.0,0.156181]
[1739297535440,0.00022387,96043.0,96042.0,0.1572221]
[1739297535620,0.00022387,96043.0,96042.0,0.156181]
[1739297536538,0.00022387,96043.0,96042.0,0.158181]
[1739297538542,0.23885815,96060.0,96044.0,0.156178]
[1739297539143,0.156154,96059.0,96044.0,0.156178]
[1739297539808,0.17935794,96060.0,96045.0,0.156176]
[1739297540013,0.167153,96060.0,96045.0,0.156176]
[1739297540221,0.156153,96060.0,96045.0,0.156176]
[1739297540407,0.01,96059.0,96046.0,0.03232476]
[1739297540622,0.01,96059.0,96044.0,0.001]
[1739297540623,0.01,96059.0,96047.0,0.03232476]
[1739297540763,0.01,96059.0,96044.0,0.001]
[1739297540970,0.01,96059.0,96045.0,0.03232476]
[1739297541193,0.01,96059.0,96046.0,0.03232476]
[1739297541400,0.01,96059.0,96047.0,0.03232476]
[1739297541618,0.156168,96051.0,96034.0,0.156193]
[1739297541816,0.156168,96051.0,96035.0,0.03233328]
[1739297542020,0.156168,96051.0,96045.0,0.001]
[1739297542293,0.156168,96051.0,96046.0,0.03233328]
[1739297542508,0.156168,96051.0,96030.0,0.14525313]
[1739297542509,0.0759,96050.0,96027.0,0.156206]
[1739297542728,0.0759,96050.0,96020.0,0.19355313]
[1739297542729,0.208231,96048.0,96029.0,0.156202]
[1739297542940,0.0759,96050.0,96031.0,0.208266]
[1739297543141,0.15617,96049.0,96033.0,0.156196]
[1739297543346,0.156171,96049.0,96034.0,0.03234561]
[1739297543555,0.0759,96050.0,96035.0,0.03234561]
[1739297543762,0.0759,96050.0,96036.0,0.03234561]
[1739297544080,0.0759,96050.0,96037.0,0.03234561]
[1739297544283,0.0881627,96050.0,96037.0,0.03234561]
[1739297544496,0.004,96051.0,96042.0,0.15618]
[1739297545273,0.003,96049.0,96046.0,0.03234561]
[1739297545491,0.003,96049.0,96047.0,0.03234561]
[1739297545701,0.208209,96057.0,96048.0,0.03234561]
[1739297545902,0.004,96051.0,96049.0,0.03234561]
[1739297546110,0.160167,96051.0,96050.0,0.03234561]
[1739297546508,0.156167,96051.0,96050.0,0.03234561]
[1739297548258,0.160167,96051.0,96050.0,0.03234561]
[1739297548938,0.004,96051.0,96050.0,0.03234561]
[1739297549643,0.004,96051.0,95987.0,0.20836]
[1739297549644,0.0759,96034.0,95987.0,0.20836]
[1739297549861,0.047,96033.0,96019.0,0.03244473]
[1739297550076,0.156222,96018.0,96000.0,0.0001067]
[1739297550280,0.197,96033.0,96001.0,0.03246068]
[1739297550518,0.02729,96032.0,96001.0,0.03246068]
[1739297550715,0.15,96029.0,96002.0,0.03246068]
[1739297550915,0.15,96027.0,96003.0,0.03246068]
[1739297551116,0.15,96027.0,96000.0,0.0001067]
[1739297551117,0.0759,96012.0,96004.0,0.03246068]
[1739297551329,0.15,96010.0,96004.0,0.03246068]
[1739297551539,0.156237,96008.0,96005.0,0.03246068]
[1739297551744,0.15,96010.0,96006.0,0.03246068]
[1739297552151,0.15,96010.0,96007.0,0.03246068]
[1739297552355,0.306232,96011.0,96008.0,0.03246068]
[1739297552555,0.156233,96010.0,96008.0,0.03246068]
[1739297552761,0.156233,96010.0,96009.0,0.03246068]
[1739297553161,0.001,96010.0,96009.0,0.03246068]
[1739297553392,0.157233,96010.0,96009.0,0.03246068]
[1739297554232,0.001,96010.0,96009.0,0.003]
[1739297554443,0.15,96010.0,96009.0,0.003]
[1739297554950,0.151,96010.0,96009.0,0.011]
[1739297555579,0.157233,96010.0,96009.0,0.011]
[1739297555987,0.001,96010.0,96009.0,0.011]
[1739297556349,0.001,96010.0,96009.0,0.04342877]
[1739297556813,0.001,96010.0,96009.0,0.19966377]
[1739297557400,0.001,96010.0,96009.0,0.30320889]
[1739297557602,0.001,96010.0,96009.0,0.30216742]
[1739297558675,0.08270615,96032.0,96010.0,0.14525313]
[1739297558880,0.08270615,96043.0,96020.0,0.14525313]
[1739297559089,0.23888615,96043.0,96022.0,0.208285]
[1739297559274,0.23888615,96043.0,96023.0,0.18863977]
[1739297559472,0.15,96042.0,96024.0,0.03242877]
[1739297559695,0.306181,96042.0,96024.0,0.03242877]
[1739297559948,0.15,96042.0,96025.0,0.03242877]
[1739297560345,0.15,96046.0,96026.0,0.03242877]
[1739297560552,0.156181,96042.0,96027.0,0.03242877]
[1739297560730,0.156181,96042.0,96028.0,0.03242877]
[1739297561032,0.15,96044.0,96029.0,0.03242877]
[1739297561263,0.15,96044.0,96030.0,0.03242877]
[1739297561380,0.156182,96042.0,96030.0,0.03242877]
[1739297561585,0.156182,96042.0,96023.0,0.156211]
[1739297561783,0.156185,96040.0,96024.0,0.03241214]
[1739297561989,0.156197,96033.0,96028.0,0.001]
[1739297562926,0.00022387,96042.0,96010.0,0.14525313]
[1739297563131,0.156196,96033.0,96014.0,0.156226]
[1739297563346,0.156196,96033.0,96015.0,0.03241655]
[1739297563550,0.156196,96033.0,96016.0,0.03241655]
[1739297563748,0.156196,96033.0,96014.0,0.25872965]
[1739297563946,0.025,96027.0,96015.0,0.03241573]
[1739297564162,0.025,96027.0,96016.0,0.24071373]
[1739297564439,0.025,96027.0,96017.0,0.18863773]
[1739297564635,0.025,96027.0,96018.0,0.03241573]
[1739297564836,0.025,96027.0,96019.0,0.03241573]
[1739297565064,0.025,96027.0,96020.0,0.03241573]
[1739297565241,0.025,96027.0,96015.0,0.160225]
[1739297565416,0.025,96027.0,96016.0,0.03241353]
[1739297565616,0.025,96027.0,96017.0,0.03241353]
[1739297566041,0.025,96027.0,96019.0,0.004]
[1739297566674,0.025,96027.0,96019.0,0.160219]
[1739297566984,0.025,96027.0,96020.0,0.03241351]
[1739297567185,0.025,96027.0,96021.0,0.03241351]
[1739297567385,0.025,96027.0,96017.0,0.30247513]
[1739297567582,0.025,96027.0,96018.0,0.03241403]
[1739297567793,0.025,96027.0,96019.0,0.03241403]
[1739297567930,0.02444807,96027.0,96018.0,0.03241403]
[1739297568127,0.02444807,96027.0,96019.0,0.03241403]
[1739297568360,0.02444807,96027.0,96020.0,0.03241403]
[1739297568559,0.02444807,96027.0,96019.0,0.001]
[1739297568892,0.02444807,96027.0,96020.0,0.03241541]
[1739297569198,0.02444807,96027.0,96018.0,0.001]
[1739297569540,0.02444807,96027.0,96014.0,0.31080565]
[1739297569541,0.02444807,96027.0,96017.0,0.156222]
[1739297569857,0.02444807,96027.0,96019.0,0.001]
[1739297570054,0.02444807,96027.0,96017.0,0.156222]
[1739297570407,0.02444807,96027.0,96018.0,0.001]
[1739297570728,0.02444807,96027.0,96020.0,0.004]
[1739297571085,0.02444807,96027.0,96018.0,0.001]
[1739297571286,0.02444807,96027.0,96019.0,0.03242576]
[1739297571496,0.02444807,96027.0,96020.0,0.03242576]
[1739297571672,0.02444807,96027.0,96021.0,0.03242576]
[1739297571894,0.02444807,96027.0,96022.0,0.03242576]
[1739297572261,0.02444807,96027.0,96018.0,0.001]
[1739297572392,0.02444807,96027.0,96023.0,0.03243236]
[1739297572755,0.02444807,96027.0,96018.0,0.15622]
[1739297572933,0.02444807,96027.0,96019.0,0.03243224]
[1739297573096,0.02444807,96027.0,96020.0,0.03243224]
[1739297573278,0.02444807,96027.0,96021.0,0.03243224]
[1739297573478,0.02444807,96027.0,96022.0,0.03243224]
[1739297573703,0.02444807,96027.0,96023.0,0.03243224]
[1739297573900,0.02444807,96027.0,96017.0,0.156222]
[1739297574123,0.02444807,96027.0,96021.0,0.004]
[1739297574326,0.02444807,96027.0,96023.0,0.001]
[1739297574533,0.02444807,96027.0,96024.0,0.03243783]
[1739297574771,0.02444807,96027.0,96025.0,0.03243783]
[1739297574957,0.02444807,96027.0,96023.0,0.004]
[1739297575117,0.02444807,96027.0,96024.0,0.03244129]
[1739297575316,0.02467194,96027.0,96025.0,0.03244129]
[1739297575517,0.02467194,96027.0,96026.0,0.18864829]
[1739297575742,0.02467194,96027.0,96026.0,0.29115194]
[1739297576399,0.02467194,96027.0,96026.0,0.03244129]
[1739297576667,0.02467194,96027.0,96026.0,0.18864829]
[1739297577237,0.02467194,96027.0,96026.0,0.29215194]
[1739297577444,0.02467194,96027.0,96026.0,0.34055194]
[1739297577641,0.02567194,96027.0,96026.0,0.35155194]
[1739297577846,0.02567194,96027.0,96026.0,0.35555194]
[1739297578203,0.08270615,96048.0,96026.0,0.35555194]
[1739297578204,0.08270615,96048.0,96036.0,0.15619]
[1739297578407,0.08270615,96048.0,96037.0,0.03244129]
[1739297578631,0.08270615,96048.0,96038.0,0.03244129]
[1739297578841,0.306164,96053.0,96039.0,0.03244129]
[1739297579041,0.306164,96053.0,96035.0,0.156192]
[1739297579262,0.306164,96053.0,96036.0,0.03244248]
[1739297579527,0.306164,96053.0,96037.0,0.03244248]
[1739297579730,0.306164,96053.0,96038.0,0.03244248]
[1739297579930,0.306164,96053.0,96036.0,0.156191]
[1739297580091,0.306164,96053.0,96037.0,0.03244175]
[1739297580304,0.15,96053.0,96038.0,0.03244175]
[1739297580570,0.15,96052.0,96020.0,0.14525313]
[1739297580773,0.15,96052.0,96030.0,0.14525313]
[1739297580981,0.156175,96046.0,96031.0,0.032445]
[1739297581188,0.156177,96045.0,96032.0,0.032445]
[1739297581388,0.156175,96046.0,96033.0,0.032445]
[1739297581661,0.156175,96046.0,96028.0,0.156204]
[1739297581852,0.003,96053.0,96052.0,0.156165]
[1739297582069,0.003,96053.0,96052.0,0.18860555]
[1739297582283,0.003,96053.0,96052.0,0.03244055]
[1739297582496,0.003,96053.0,96045.0,0.156175]
[1739297582652,0.003,96053.0,96046.0,0.156174]
[1739297582878,0.156155,96059.0,96046.0,0.156173]
[1739297583085,0.156155,96059.0,96048.0,0.156171]
[1739297583086,0.18462287,96059.0,96048.0,0.156171]
[1739297583266,0.208203,96060.0,96046.0,0.156174]
[1739297583465,0.208203,96060.0,96035.0,0.208257]
[1739297583672,0.005,96052.0,96046.0,0.156173]
[1739297583868,0.005,96052.0,96047.0,0.156172]
[1739297584074,0.156155,96058.0,96047.0,0.156172]
[1739297584304,0.156162,96054.0,96046.0,0.001]
[1739297584890,0.15616,96056.0,96046.0,0.157175]
[1739297585091,0.156161,96055.0,96047.0,0.003]
[1739297586233,0.156161,96055.0,96047.0,0.008]
[1739297586437,0.208209,96057.0,96047.0,0.008]
[1739297586642,0.156158,96057.0,96040.0,0.208246]
[1739297586816,0.156158,96056.0,96045.0,0.156175]
[1739297587019,0.156158,96056.0,96047.0,0.003]
[1739297587435,0.22052165,96058.0,96041.0,0.208244]
[1739297587639,0.00022366,96061.0,96055.0,0.156159]
[1739297587836,0.00022366,96061.0,96048.0,0.14525313]
[1739297588242,0.00022366,96061.0,96049.0,0.03243309]
[1739297588446,0.00022366,96061.0,96055.0,0.15616]
[1739297588607,0.00022366,96061.0,96049.0,0.208226]
[1739297588808,0.00022366,96061.0,96060.0,0.156152]
[1739297589241,0.00022366,96061.0,96060.0,0.1885877]
[1739297590999,0.156138,96069.0,96060.0,0.0324357]
[1739297591215,0.16209762,96072.0,96060.0,0.0324357]
[1739297591386,0.2326,96066.0,96060.0,0.006]
[1739297591562,0.208198,96063.0,96060.0,0.006]
[1739297591760,0.15615,96061.0,96060.0,0.006]
[1739297592047,0.208198,96063.0,96060.0,0.008]
[1739297592198,0.15615,96061.0,96060.0,0.008]
[1739297593216,0.156149,96063.0,96060.0,0.002]
[1739297593540,0.358195,96064.0,96049.0,0.15617]
[1739297593745,0.15,96064.0,96050.0,0.03245786]
[1739297593949,0.15,96064.0,96051.0,0.03245786]
[1739297593950,0.156151,96061.0,96051.0,0.03245786]
[1739297594170,0.15615,96062.0,96052.0,0.03245786]
[1739297594352,0.156151,96061.0,96060.0,0.002]
[1739297594779,0.156151,96061.0,96048.0,0.15617]
[1739297594976,0.156151,96061.0,96043.0,0.208238]
[1739297594977,0.208196,96063.0,96049.0,0.03245704]
[1739297595201,0.156149,96063.0,96050.0,0.03245704]
[1739297595473,0.156149,96062.0,96051.0,0.03345704]
[1739297595727,0.156149,96062.0,96052.0,0.03245704]
[1739297596008,0.156149,96062.0,96051.0,0.001]
[1739297596222,0.156149,96062.0,96052.0,0.03245624]
[1739297596427,0.156152,96060.0,96053.0,0.03245624]
[1739297596628,0.156148,96063.0,96060.0,0.002]
[1739297596770,0.156149,96062.0,96060.0,0.002]
[1739297596975,0.15615,96062.0,96041.0,0.572671]
[1739297597179,0.15615,96062.0,96048.0,0.001]
[1739297597381,0.15,96064.0,96053.0,0.156163]
[1739297597601,0.15,96065.0,96052.0,0.001]
[1739297597790,0.156146,96064.0,96053.0,0.03345679]
[1739297598007,0.156146,96064.0,96052.0,0.156164]
[1739297598211,0.306144,96065.0,96060.0,0.001]
[1739297598409,0.15,96065.0,96060.0,0.001]
[1739297598654,0.15,96068.0,96060.0,0.001]
[1739297598971,0.15,96064.0,96060.0,0.001]
[1739297599448,0.15,96064.0,96052.0,0.156164]
[1739297599687,0.15,96064.0,96053.0,0.03246153]
[1739297599887,0.001,96065.0,96053.0,0.03246153]
[1739297600039,0.001,96065.0,96055.0,0.156159]
[1739297600248,0.156136,96070.0,96065.0,0.00099465]
[1739297603160,0.22027462,96072.0,96065.0,0.00099465]
[1739297603363,0.156134,96071.0,96065.0,0.00099465]
[1739297603572,0.001,96070.0,96065.0,0.00099465]
[1739297604181,0.00022428,96072.0,96065.0,0.00099465]
[1739297604390,0.00022428,96072.0,96071.0,0.156134]
[1739297604600,0.00022428,96072.0,96070.0,0.156136]
[1739297604601,0.001,96071.0,96070.0,0.156136]
[1739297604771,0.001,96071.0,96070.0,0.18859216]
[1739297605823,0.156109,96087.0,96074.0,0.156128]
[1739297606233,0.156106,96089.0,96075.0,0.03245616]
[1739297606456,0.01185241,96090.0,96076.0,0.03245616]
[1739297606772,0.156107,96088.0,96077.0,0.03245616]
[1739297607020,0.15,96093.0,96078.0,0.03245616]
[1739297607229,0.156106,96088.0,96078.0,0.03245616]
[1739297607405,0.156109,96087.0,96078.0,0.03245616]
[1739297608200,0.156105,96089.0,96078.0,0.03445616]
[1739297609482,0.37049008,96093.0,96078.0,0.19057916]
[1739297609726,0.156108,96088.0,96078.0,0.03945616]
[1739297609936,0.16235708,96093.0,96078.0,0.03945616]
[1739297610142,0.156113,96084.0,96078.0,0.007]
[1739297610368,0.208146,96087.0,96078.0,0.007]
[1739297610574,0.156113,96084.0,96078.0,0.007]
[1739297610770,0.15634508,96079.0,96078.0,0.002]
[1739297610989,0.00022408,96079.0,96067.0,0.15614]
[1739297611194,0.00022408,96079.0,96068.0,0.0324642]
[1739297611397,0.00022408,96079.0,96069.0,0.0324642]
[1739297611553,0.00022408,96079.0,96070.0,0.0324642]
[1739297611743,0.00022408,96079.0,96071.0,0.0324642]
[1739297611960,0.00022408,96079.0,96072.0,0.0324642]
[1739297612161,0.00022408,96079.0,96068.0,0.156139]
[1739297612361,0.00022408,96079.0,96069.0,0.03246797]
[1739297612576,0.00022408,96079.0,96070.0,0.03246797]
[1739297612772,0.00022408,96079.0,96078.0,0.001]
[1739297613342,0.00022408,96079.0,96078.0,0.001]
[1739297613761,0.00022408,96079.0,96065.0,0.20918565]
[1739297613957,0.00022408,96079.0,96070.0,0.001]
[1739297614168,0.00022408,96079.0,96071.0,0.03246829]
[1739297614312,0.00022408,96079.0,96072.0,0.03246829]
[1739297614525,0.00022408,96079.0,96073.0,0.03246829]
[1739297614751,0.00022408,96079.0,96074.0,0.03246829]
[1739297614979,0.00022408,96079.0,96067.0,0.156139]
[1739297615171,0.00022408,96079.0,96068.0,0.03246935]
[1739297615372,0.00022408,96079.0,96069.0,0.03246935]
[1739297615576,0.00022408,96079.0,96070.0,0.03246935]
[1739297615776,0.00022408,96079.0,96078.0,0.001]
[1739297616205,0.00022408,96079.0,96069.0,0.156137]
[1739297616404,0.00022408,96079.0,96070.0,0.03247388]
[1739297616645,0.00022408,96079.0,96071.0,0.03247388]
[1739297616814,0.00022408,96079.0,96072.0,0.03247388]
[1739297617016,0.00022408,96079.0,96073.0,0.03247388]
[1739297617255,0.00022408,96079.0,96078.0,0.001]
[1739297618738,0.00022408,96079.0,96065.0,0.00099465]
[1739297618896,0.00022408,96079.0,96068.0,0.156139]
[1739297619104,0.00022408,96079.0,96069.0,0.0324736]
[1739297619319,0.00022408,96079.0,96070.0,0.0334736]
[1739297619528,0.00022408,96079.0,96071.0,0.0324736]
[1739297619770,0.00022408,96079.0,96075.0,0.156127]
[1739297619985,0.00022408,96079.0,96076.0,0.0324736]
[1739297620307,0.00022408,96079.0,96077.0,0.0324736]
[1739297620512,0.00022408,96079.0,96078.0,0.0324736]
[1739297620894,0.08206361,96082.0,96078.0,0.0324736]
[1739297621139,0.08206361,96082.0,96075.0,0.156126]
[1739297621467,0.15,96086.0,96076.0,0.03247254]
[1739297621670,0.15,96084.0,96070.0,0.001]
[1739297621991,0.156123,96078.0,96070.0,0.001]
[1739297622169,0.358154,96083.0,96070.0,0.001]
[1739297622363,0.15,96083.0,96062.0,0.156148]
[1739297622565,0.156121,96079.0,96063.0,0.03248075]
[1739297622798,0.156123,96078.0,96060.0,0.15637486]
[1739297623332,0.15,96083.0,96062.0,0.156147]
[1739297623333,0.15612,96080.0,96062.0,0.156147]
[1739297623591,0.156122,96079.0,96061.0,0.24067961]
[1739297623788,0.156122,96079.0,96063.0,0.03248061]
[1739297623961,0.156122,96079.0,96064.0,0.03248061]
[1739297624164,0.01213269,96080.0,96065.0,0.03348061]
[1739297624363,0.0801,96092.0,96065.0,0.157142]
[1739297624595,0.15,96082.0,96065.0,0.157142]
[1739297624795,0.15,96082.0,96072.0,0.00022386]
[1739297625046,0.001,96079.0,96072.0,0.00022386]
[1739297625459,0.1501066,96082.0,96072.0,0.00022386]
[1739297625651,0.0001066,96082.0,96072.0,0.00022386]
[1739297626641,0.15612,96080.0,96072.0,0.00022386]
[1739297626868,0.0001066,96082.0,96072.0,0.00022386]
[1739297627059,0.156119,96081.0,96072.0,0.00022386]
[1739297627268,0.1562236,96082.0,96072.0,0.00022386]
[1739297627472,0.1562236,96082.0,96072.0,0.00322386]
[1739297627685,0.0001066,96082.0,96072.0,0.00322386]
[1739297627891,0.0001066,96082.0,96072.0,0.00022386]
[1739297628261,0.1562226,96082.0,96072.0,0.00022386]
[1739297628464,0.15501328,96082.0,96072.0,0.00022386]
[1739297628672,0.001,96081.0,96072.0,0.00022386]
[1739297629049,0.15501328,96082.0,96072.0,0.00022386]
[1739297629413,0.156118,96081.0,96072.0,0.00022386]
[1739297629940,0.01197286,96082.0,96072.0,0.00022386]
[1739297630143,0.156122,96079.0,96072.0,0.00022386]
[1739297630346,0.156129,96075.0,96072.0,0.00022386]
[1739297630614,0.156125,96077.0,96072.0,0.00022386]
[1739297630810,0.156127,96076.0,96072.0,0.00022386]
[1739297631754,0.208165,96078.0,96072.0,0.00022386]
[1739297632102,0.01197286,96082.0,96072.0,0.00022386]
[1739297632103,0.208166,96077.0,96072.0,0.00022386]
[1739297632369,0.364292,96077.0,96072.0,0.00222386]
[1739297632544,0.364292,96077.0,96073.0,0.0325093]
[1739297632745,0.156126,96077.0,96074.0,0.0325093]
[1739297632942,0.156126,96076.0,96072.0,0.00322386]
[1739297633149,0.208158,96081.0,96073.0,0.0325093]
[1739297633330,0.156125,96077.0,96074.0,0.0325093]
[1739297633685,0.306126,96076.0,96075.0,0.0325093]
[1739297633896,0.306131,96073.0,96072.0,0.00022386]
[1739297634087,0.40863465,96073.0,96072.0,0.00122386]
[1739297634561,0.40863465,96073.0,96072.0,0.00022386]
[1739297634986,0.50604093,96073.0,96072.0,0.00022386]
[1739297635742,0.50804093,96073.0,96072.0,0.00022386]
[1739297636908,0.50604093,96073.0,96072.0,0.00022386]
[1739297637122,0.51104093,96073.0,96072.0,0.00022386]
[1739297638099,0.30615,96061.0,96060.0,0.00022386]
[1739297638306,0.49115365,96061.0,96060.0,0.00022386]
[1739297640129,0.49115365,96061.0,96060.0,0.00122386]
[1739297641119,0.49115365,96061.0,96060.0,0.00022386]
[1739297642092,0.50310744,96061.0,96060.0,0.00022386]
[1739297643479,0.16195379,96061.0,96060.0,0.00022386]
[1739297643681,0.31810379,96061.0,96060.0,0.00022386]
[1739297644463,0.208191,96066.0,96060.0,0.00022386]
[1739297644464,0.156139,96068.0,96060.0,0.00022386]
[1739297644663,0.33759178,96072.0,96060.0,0.00022386]
[1739297644890,0.15614,96068.0,96060.0,0.00022386]
[1739297645132,0.208182,96070.0,96060.0,0.00022386]
[1739297645334,0.15,96069.0,96060.0,0.00022386]
[1739297645538,0.15,96067.0,96060.0,0.00022386]
[1739297645750,0.156143,96066.0,96060.0,0.00022386]
[1739297646118,0.15,96064.0,96060.0,0.00022386]
[1739297646323,0.15,96065.0,96060.0,0.00022386]
[1739297647284,0.15,96065.0,96060.0,0.00222386]
[1739297647496,0.208182,96070.0,96060.0,0.00222386]
[1739297647714,0.15,96067.0,96060.0,0.00222386]
[1739297647866,0.156143,96066.0,96060.0,0.00222386]
[1739297648078,0.156143,96066.0,96060.0,0.00022386]
[1739297648243,0.15,96067.0,96060.0,0.00022386]
[1739297648455,0.001,96065.0,96060.0,0.00022386]
[1739297649756,0.157144,96065.0,96060.0,0.00022386]
[1739297649957,0.15,96062.0,96060.0,0.00022386]
[1739297650137,0.15,96061.0,96060.0,0.00022386]
[1739297650575,0.3570695,96061.0,96060.0,0.00022386]
[1739297650979,0.30615,96061.0,96060.0,0.00122386]
[1739297651719,0.30615,96061.0,96060.0,0.00422386]
[1739297652785,0.30615,96061.0,96060.0,0.00322386]
[1739297652984,0.31809978,96061.0,96060.0,0.00322386]
[1739297653407,0.31809978,96061.0,96060.0,0.00022386]
[1739297654032,0.42060343,96061.0,96060.0,0.00022386]
[1739297654234,0.44360343,96061.0,96060.0,0.00022386]
[1739297654431,0.52230343,96061.0,96060.0,0.00022386]
[1739297655614,0.54275687,96061.0,96060.0,0.00022386]
[1739297656621,0.54775687,96061.0,96060.0,0.00122386]
[1739297656791,0.54775687,96061.0,96060.0,0.001]
[1739297656792,0.69816052,96061.0,96060.0,0.001]
[1739297657196,0.1562,96031.0,96019.0,0.3213]
[1739297657409,0.15,96031.0,96030.0,0.08270615]
[1739297657580,0.15,96031.0,96018.0,0.08270615]
[1739297657926,0.156201,96030.0,96019.0,0.03244443]
[1739297658135,0.156201,96030.0,96020.0,0.03244443]
[1739297658283,0.15,96031.0,96019.0,0.003]
[1739297658481,0.15,96035.0,96019.0,0.012]
[1739297658687,0.156204,96029.0,96019.0,0.009]
[1739297659137,0.25860991,96034.0,96019.0,0.009]
[1739297659138,0.3062,96031.0,96019.0,0.009]
[1739297659514,0.156201,96030.0,96019.0,0.009]
[1739297659737,0.15,96031.0,96016.0,0.0766]
[1739297660056,0.15,96031.0,96018.0,0.04443491]
[1739297660278,0.15,96031.0,96019.0,0.03243491]
[1739297660455,0.15,96031.0,96018.0,0.009]
[1739297660657,0.15,96031.0,96016.0,0.0766]
[1739297660658,0.01162331,96035.0,96019.0,0.003]
[1739297660816,0.15,96032.0,96019.0,0.009]
[1739297661205,0.306198,96032.0,96019.0,0.009]
[1739297661797,0.15,96034.0,96020.0,0.03243536]
[1739297661994,0.15,96034.0,96021.0,0.03243536]
[1739297662175,0.306194,96034.0,96022.0,0.03243536]
[1739297662376,0.306194,96034.0,96019.0,0.009]
[1739297662377,0.15,96032.0,96023.0,0.03243536]
[1739297662619,0.15,96032.0,96023.0,0.156211]
[1739297662851,0.15,96032.0,96024.0,0.03243775]
[1739297662978,0.15,96032.0,96020.0,0.14525313]
[1739297663182,0.15,96032.0,96022.0,0.156213]
[1739297663375,0.01177243,96038.0,96022.0,0.156213]
[1739297663376,0.01177243,96038.0,96023.0,0.03243768]
[1739297663583,0.15,96041.0,96024.0,0.03243768]
[1739297663803,0.15,96039.0,96025.0,0.03243768]
[1739297664008,0.10250365,96061.0,96031.0,0.045]
[1739297664183,0.01182817,96058.0,96034.0,0.0766]
[1739297664386,0.35819,96066.0,96040.0,0.14525313]
[1739297664722,0.35819,96066.0,96035.0,0.03243768]
[1739297664723,0.156159,96056.0,96041.0,0.03243768]
[1739297664923,0.15,96054.0,96042.0,0.03243768]
[1739297665121,0.20821,96057.0,96035.0,0.208256]
[1739297665330,0.20819,96066.0,96036.0,0.13494841]
[1739297665532,0.15616,96055.0,96038.0,0.01947917]
[1739297665736,0.15,96065.0,96039.0,0.03244476]
[1739297665915,0.156145,96064.0,96040.0,0.18862876]
[1739297666116,0.0001066,96061.0,96041.0,0.03244476]
[1739297666321,0.15,96058.0,96042.0,0.03244476]
[1739297666515,0.001,96056.0,96043.0,0.03244476]
[1739297666703,0.156161,96055.0,96044.0,0.03244476]
[1739297666904,0.001,96056.0,96045.0,0.03244476]
[1739297667139,0.156159,96056.0,96046.0,0.03244476]
[1739297667402,0.156162,96054.0,96047.0,0.03244476]
[1739297667607,0.156163,96053.0,96048.0,0.03244476]
[1739297667810,0.156163,96053.0,96049.0,0.03244476]
[1739297668054,0.156163,96053.0,96050.0,0.03244476]
[1739297668259,0.156163,96053.0,96036.0,0.10250365]
[1739297668460,0.156163,96053.0,96037.0,0.05194216]
[1739297668703,0.156166,96052.0,96038.0,0.03246716]